[Event "Titled Tuesday Blitz August 08 Early 2023"]
[White "Vovk, Orest"]
[Black "Srihari L R"]
[WhiteFideId "14113490"]
[BlackFideId "46617116"]
[WhiteElo "2483"]
[BlackElo "2758"]
[Result "1/2-1/2"]
[Round "6"]
[TimeControl "180+1"]
[Date "2023.08.08"]
[WhiteClock "0:00:06"]
[BlackClock "0:00:04"]
[Board "115"]

1. h4 {[%clk 0:03:00]}  c5 {[%clk 0:02:58]} 2. h5 {[%clk 0:02:59]}  Nc6 {[%clk 0:02:57]} 3. Nf3 {[%clk 0:02:54]}  d5 {[%clk 0:02:56]} 4. e4 {[%clk 0:02:43]}  dxe4 {[%clk 0:02:52]} 5. Ng5 {[%clk 0:02:43]}  Nf6 {[%clk 0:02:46]} 6. Bc4 {[%clk 0:02:37]}  Ne5 {[%clk 0:02:45]} 7. Bb5+ {[%clk 0:02:35]}  Bd7 {[%clk 0:02:45]} 8. Qe2 {[%clk 0:02:34]}  Bxb5 {[%clk 0:02:30]} 9. Qxb5+ {[%clk 0:02:32]}  Qd7 {[%clk 0:02:29]} 10. Qxd7+ {[%clk 0:02:21]}  Kxd7 {[%clk 0:02:09]} 11. Nc3 {[%clk 0:02:22]}  h6 {[%clk 0:02:08]} 12. Ngxe4 {[%clk 0:02:21]}  Nxe4 {[%clk 0:02:08]} 13. Nxe4 {[%clk 0:02:22]}  e6 {[%clk 0:02:09]} 14. d3 {[%clk 0:02:20]}  Be7 {[%clk 0:02:08]} 15. Bf4 {[%clk 0:02:15]}  Nc6 {[%clk 0:02:08]} 16. O-O-O {[%clk 0:02:13]}  b6 {[%clk 0:02:06]} 17. Be3 {[%clk 0:02:07]}  f5 {[%clk 0:02:05]} 18. Nc3 {[%clk 0:02:04]}  Rhf8 {[%clk 0:02:02]} 19. d4 {[%clk 0:02:01]}  f4 {[%clk 0:01:51]} 20. dxc5+ {[%clk 0:01:56]}  Kc7 {[%clk 0:01:50]} 21. cxb6+ {[%clk 0:01:49]}  axb6 {[%clk 0:01:50]} 22. Nb5+ {[%clk 0:01:31]}  Kc8 {[%clk 0:01:50]} 23. Bxb6 {[%clk 0:01:18]}  Rxa2 {[%clk 0:01:49]} 24. Kb1 {[%clk 0:01:12]}  Ra6 {[%clk 0:01:49]} 25. Bd4 {[%clk 0:01:06]}  e5 {[%clk 0:01:47]} 26. Bc3 {[%clk 0:01:02]}  Rb6 {[%clk 0:01:36]} 27. Nd6+ {[%clk 0:01:01]}  Kc7 {[%clk 0:01:35]} 28. Nc4 {[%clk 0:00:53]}  Rb5 {[%clk 0:01:29]} 29. Rhe1 {[%clk 0:00:53]}  Bf6 {[%clk 0:01:29]} 30. Nd6 {[%clk 0:00:45]}  Rb6 {[%clk 0:01:28]} 31. Ne4 {[%clk 0:00:43]}  Ra8 {[%clk 0:01:26]} 32. b3 {[%clk 0:00:39]}  Rb5 {[%clk 0:01:12]} 33. Rd3 {[%clk 0:00:33]}  Rd8 {[%clk 0:01:08]} 34. Red1 {[%clk 0:00:30]}  Rxd3 {[%clk 0:01:08]} 35. Rxd3 {[%clk 0:00:31]}  Rb8 {[%clk 0:01:05]} 36. g3 {[%clk 0:00:17]}  fxg3 {[%clk 0:01:03]} 37. fxg3 {[%clk 0:00:17]}  Rf8 {[%clk 0:01:01]} 38. Rd5 {[%clk 0:00:14]}  Re8 {[%clk 0:00:43]} 39. Ba5+ {[%clk 0:00:11]}  Nxa5 {[%clk 0:00:38]} 40. Rxa5 {[%clk 0:00:12]}  Rd8 {[%clk 0:00:38]} 41. Ra6 {[%clk 0:00:12]}  Rd1+ {[%clk 0:00:36]} 42. Kb2 {[%clk 0:00:10]}  Be7 {[%clk 0:00:34]} 43. Rg6 {[%clk 0:00:07]}  Bf8 {[%clk 0:00:31]} 44. Re6 {[%clk 0:00:05]}  Re1 {[%clk 0:00:14]} 45. Rxe5 {[%clk 0:00:05]}  g6 {[%clk 0:00:14]} 46. c3 {[%clk 0:00:02]}  gxh5 {[%clk 0:00:14]} 47. Re6 {[%clk 0:00:03]}  Re2+ {[%clk 0:00:11]} 48. Kc1 {[%clk 0:00:02]}  Ba3+ {[%clk 0:00:11]} 49. Kd1 {[%clk 0:00:03]}  Rb2 {[%clk 0:00:11]} 50. Rxh6 {[%clk 0:00:02]}  Rxb3 {[%clk 0:00:11]} 51. Rh7+ {[%clk 0:00:02]}  Kd8 {[%clk 0:00:11]} 52. Kc2 {[%clk 0:00:03]}  Rb2+ {[%clk 0:00:11]} 53. Kd3 {[%clk 0:00:03]}  Rb5 {[%clk 0:00:11]} 54. Rh8+ {[%clk 0:00:03]}  Ke7 {[%clk 0:00:11]} 55. Rh7+ {[%clk 0:00:04]}  Kf8 {[%clk 0:00:11]} 56. Kc4 {[%clk 0:00:04]}  Re5 {[%clk 0:00:10]} 57. Kd4 {[%clk 0:00:04]}  Ra5 {[%clk 0:00:09]} 58. Rb7 {[%clk 0:00:04]}  Be7 {[%clk 0:00:08]} 59. c4 {[%clk 0:00:04]}  Ra1 {[%clk 0:00:07]} 60. c5 {[%clk 0:00:04]}  Rd1+ {[%clk 0:00:07]} 61. Ke5 {[%clk 0:00:05]}  Re1 {[%clk 0:00:07]} 62. Kf5 {[%clk 0:00:05]}  Rf1+ {[%clk 0:00:06]} 63. Ke6 {[%clk 0:00:05]}  Re1 {[%clk 0:00:06]} 64. Kd5 {[%clk 0:00:05]}  Bxc5 {[%clk 0:00:05]} 65. Nxc5 {[%clk 0:00:05]}  Rh1 {[%clk 0:00:05]} 66. Rb4 {[%clk 0:00:02]}  Kg7 {[%clk 0:00:04]} 67. Ne4 {[%clk 0:00:03]}  h4 {[%clk 0:00:04]} 68. Rb7+ {[%clk 0:00:04]}  Kg6 {[%clk 0:00:03]} 69. gxh4 {[%clk 0:00:04]}  Rxh4 {[%clk 0:00:03]} 70. Rb6+ {[%clk 0:00:05]}  Kg7 {[%clk 0:00:04]} 71. Rc6 {[%clk 0:00:05]}  Rh1 {[%clk 0:00:04]} 72. Ke5 {[%clk 0:00:05]}  Rd1 {[%clk 0:00:05]} 73. Kf4 {[%clk 0:00:05]}  Rf1+ {[%clk 0:00:05]} 74. Kg4 {[%clk 0:00:05]}  Rg1+ {[%clk 0:00:05]} 75. Ng3 {[%clk 0:00:05]}  Ra1 {[%clk 0:00:06]} 76. Kg5 {[%clk 0:00:05]}  Kf7 {[%clk 0:00:05]} 77. Nf5 {[%clk 0:00:04]}  Rg1+ {[%clk 0:00:05]} 78. Kf4 {[%clk 0:00:04]}  Rf1+ {[%clk 0:00:06]} 79. Ke4 {[%clk 0:00:05]}  Re1+ {[%clk 0:00:06]} 80. Ne3 {[%clk 0:00:05]}  Kg7 {[%clk 0:00:07]} 81. Ra6 {[%clk 0:00:05]}  Rh1 {[%clk 0:00:04]} 82. Kf4 {[%clk 0:00:05]}  Re1 {[%clk 0:00:03]} 83. Ng4 {[%clk 0:00:04]}  Kf7 {[%clk 0:00:03]} 84. Ne5+ {[%clk 0:00:04]}  Ke7 {[%clk 0:00:02]} 85. Ra7+ {[%clk 0:00:04]}  Ke6 {[%clk 0:00:03]} 86. Ra6+ {[%clk 0:00:05]}  Kd5 {[%clk 0:00:03]} 87. Nf3 {[%clk 0:00:05]}  Re8 {[%clk 0:00:02]} 88. Ra7 {[%clk 0:00:04]}  Kc4 {[%clk 0:00:02]} 89. Kf5 {[%clk 0:00:04]}  Rf8+ {[%clk 0:00:02]} 90. Ke4 {[%clk 0:00:04]}  Kc5 {[%clk 0:00:02]} 91. Ne5 {[%clk 0:00:05]}  Rh8 {[%clk 0:00:02]} 92. Rc7+ {[%clk 0:00:05]}  Kd6 {[%clk 0:00:01]} 93. Rc1 {[%clk 0:00:06]}  Rh4+ {[%clk 0:00:01]} 94. Kf5 {[%clk 0:00:06]}  Rh5+ {[%clk 0:00:02]} 95. Kf6 {[%clk 0:00:06]}  Rxe5 {[%clk 0:00:02]} 96. Rd1+ {[%clk 0:00:06]}  Rd5 {[%clk 0:00:03]} 97. Rxd5+ {[%clk 0:00:06]}  Kxd5 {[%clk 0:00:04]} 1/2-1/2


[Site "https://www.chess.com"]

[Event "Titled Tuesday Blitz August 08 Early 2023"]
[White "Khamdamova, Afruza"]
[Black "jumpingknight20"]
[WhiteFideId "14210444"]
[WhiteElo "2481"]
[BlackElo "2682"]
[Result "0-1"]
[Round "6"]
[TimeControl "180+1"]
[Date "2023.08.08"]
[WhiteClock "0:00:20"]
[BlackClock "0:00:10"]
[Board "116"]

1. e4 {[%clk 0:03:00]}  c5 {[%clk 0:02:59]} 2. Nf3 {[%clk 0:03:01]}  d6 {[%clk 0:03:00]} 3. d4 {[%clk 0:03:01]}  cxd4 {[%clk 0:03:01]} 4. Nxd4 {[%clk 0:03:01]}  Nf6 {[%clk 0:03:01]} 5. Nc3 {[%clk 0:03:02]}  a6 {[%clk 0:03:01]} 6. Be3 {[%clk 0:03:00]}  e5 {[%clk 0:03:01]} 7. Nb3 {[%clk 0:03:00]}  Be7 {[%clk 0:03:02]} 8. f3 {[%clk 0:02:59]}  Be6 {[%clk 0:03:01]} 9. Qd2 {[%clk 0:02:59]}  h5 {[%clk 0:03:02]} 10. O-O-O {[%clk 0:02:57]}  Nbd7 {[%clk 0:03:02]} 11. Nd5 {[%clk 0:02:57]}  Nxd5 {[%clk 0:03:00]} 12. exd5 {[%clk 0:02:57]}  Bf5 {[%clk 0:03:01]} 13. Bd3 {[%clk 0:02:57]}  Bxd3 {[%clk 0:03:01]} 14. Qxd3 {[%clk 0:02:57]}  Bg5 {[%clk 0:03:01]} 15. Kb1 {[%clk 0:02:56]}  Bxe3 {[%clk 0:02:59]} 16. Qxe3 {[%clk 0:02:56]}  O-O {[%clk 0:02:59]} 17. h4 {[%clk 0:02:55]}  a5 {[%clk 0:02:56]} 18. a4 {[%clk 0:02:54]}  Nb6 {[%clk 0:02:47]} 19. g4 {[%clk 0:02:49]}  hxg4 {[%clk 0:02:47]} 20. Rdg1 {[%clk 0:02:23]}  f5 {[%clk 0:02:41]} 21. fxg4 {[%clk 0:02:23]}  f4 {[%clk 0:02:39]} 22. Qe4 {[%clk 0:02:23]}  Qd7 {[%clk 0:02:14]} 23. h5 {[%clk 0:02:22]}  Qxa4 {[%clk 0:02:14]} 24. Qg6 {[%clk 0:02:13]}  Qe8 {[%clk 0:02:08]} 25. Qxd6 {[%clk 0:02:08]}  Rf6 {[%clk 0:02:08]} 26. Qc5 {[%clk 0:01:59]}  a4 {[%clk 0:02:04]} 27. Nd2 {[%clk 0:01:58]}  Rc8 {[%clk 0:02:02]} 28. Qa3 {[%clk 0:01:51]}  f3 {[%clk 0:01:39]} 29. g5 {[%clk 0:01:50]}  Rf4 {[%clk 0:01:37]} 30. g6 {[%clk 0:01:36]}  f2 {[%clk 0:01:31]} 31. Rf1 {[%clk 0:01:36]}  Qb5 {[%clk 0:01:27]} 32. h6 {[%clk 0:01:30]}  Qc5 {[%clk 0:00:43]} 33. Qd3 {[%clk 0:01:11]}  Qxd5 {[%clk 0:00:43]} 34. Qh3 {[%clk 0:01:09]}  Qd7 {[%clk 0:00:26]} 35. Qh5 {[%clk 0:01:02]}  a3 {[%clk 0:00:23]} 36. Qxe5 {[%clk 0:00:45]}  Rb4 {[%clk 0:00:20]} 37. Nb3 {[%clk 0:00:43]}  Nc4 {[%clk 0:00:19]} 38. Qh5 {[%clk 0:00:34]}  Nd2+ {[%clk 0:00:15]} 39. Nxd2 {[%clk 0:00:22]}  Rxb2+ {[%clk 0:00:16]} 40. Ka1 {[%clk 0:00:22]}  Qxd2 {[%clk 0:00:14]} 41. hxg7 {[%clk 0:00:21]}  Ra2+ {[%clk 0:00:14]} 42. Kxa2 {[%clk 0:00:21]}  Qxc2+ {[%clk 0:00:11]} 43. Kxa3 {[%clk 0:00:21]}  Rc3+ {[%clk 0:00:09]} 44. Kb4 {[%clk 0:00:21]}  Rb3+ {[%clk 0:00:09]} 45. Ka5 {[%clk 0:00:20]}  Qa2# {[%clk 0:00:10]} 0-1


[Site "https://www.chess.com"]

[Event "Titled Tuesday Blitz August 08 Early 2023"]
[White "Shuvalov, Evgenij"]
[Black "Goroshkov, Maksym"]
[WhiteFideId "4187237"]
[BlackFideId "14142716"]
[WhiteElo "2479"]
[BlackElo "2650"]
[Result "0-1"]
[Round "6"]
[TimeControl "180+1"]
[Date "2023.08.08"]
[WhiteClock "0:00:32"]
[BlackClock "0:00:33"]
[Board "117"]

1. d4 {[%clk 0:03:00]}  Nf6 {[%clk 0:02:58]} 2. c4 {[%clk 0:03:01]}  d6 {[%clk 0:02:56]} 3. Nf3 {[%clk 0:03:00]}  g6 {[%clk 0:02:53]} 4. Nc3 {[%clk 0:03:00]}  Bg7 {[%clk 0:02:52]} 5. e4 {[%clk 0:03:00]}  O-O {[%clk 0:02:51]} 6. Be2 {[%clk 0:03:00]}  c5 {[%clk 0:02:47]} 7. O-O {[%clk 0:02:58]}  cxd4 {[%clk 0:02:42]} 8. Nxd4 {[%clk 0:02:59]}  Nc6 {[%clk 0:02:43]} 9. Be3 {[%clk 0:02:58]}  Bd7 {[%clk 0:02:40]} 10. f3 {[%clk 0:02:58]}  a6 {[%clk 0:02:35]} 11. Qd2 {[%clk 0:02:58]}  Rc8 {[%clk 0:02:32]} 12. Rfc1 {[%clk 0:02:53]}  Ne5 {[%clk 0:02:28]} 13. b3 {[%clk 0:02:52]}  Nc6 {[%clk 0:02:27]} 14. Rab1 {[%clk 0:02:52]}  Nh5 {[%clk 0:02:25]} 15. Bf1 {[%clk 0:02:43]}  Nxd4 {[%clk 0:02:09]} 16. Bxd4 {[%clk 0:02:44]}  Bxd4+ {[%clk 0:02:08]} 17. Qxd4 {[%clk 0:02:45]}  Nf4 {[%clk 0:02:06]} 18. Qe3 {[%clk 0:02:34]}  e5 {[%clk 0:01:58]} 19. Rd1 {[%clk 0:02:30]}  Qe7 {[%clk 0:01:41]} 20. Rd2 {[%clk 0:02:28]}  Bc6 {[%clk 0:01:40]} 21. Rbd1 {[%clk 0:02:28]}  Ne6 {[%clk 0:01:37]} 22. Ne2 {[%clk 0:02:25]}  Rfd8 {[%clk 0:01:36]} 23. g3 {[%clk 0:02:25]}  f5 {[%clk 0:01:34]} 24. Bh3 {[%clk 0:02:13]}  Qg5 {[%clk 0:01:27]} 25. Qb6 {[%clk 0:01:57]}  Nc5 {[%clk 0:01:11]} 26. Rxd6 {[%clk 0:01:42]}  Qe3+ {[%clk 0:01:11]} 27. Kf1 {[%clk 0:01:37]}  Rxd6 {[%clk 0:01:10]} 28. Rxd6 {[%clk 0:01:37]}  Qxf3+ {[%clk 0:01:11]} 29. Ke1 {[%clk 0:01:32]}  Qh1+ {[%clk 0:01:05]} 30. Bf1 {[%clk 0:01:31]}  Nxe4 {[%clk 0:00:49]} 31. Rd8+ {[%clk 0:01:31]}  Rxd8 {[%clk 0:00:50]} 32. Qxd8+ {[%clk 0:01:31]}  Kf7 {[%clk 0:00:51]} 33. Qc7+ {[%clk 0:01:25]}  Ke6 {[%clk 0:00:50]} 34. Qc8+ {[%clk 0:01:20]}  Bd7 {[%clk 0:00:47]} 35. Qxb7 {[%clk 0:01:12]}  Qg1 {[%clk 0:00:46]} 36. Qxa6+ {[%clk 0:01:01]}  Kf7 {[%clk 0:00:46]} 37. c5 {[%clk 0:00:39]}  Qf2+ {[%clk 0:00:36]} 38. Kd1 {[%clk 0:00:39]}  Qxf1+ {[%clk 0:00:37]} 39. Kc2 {[%clk 0:00:39]}  Nxc5 {[%clk 0:00:33]} 40. Qc4+ {[%clk 0:00:36]}  Ne6 {[%clk 0:00:32]} 41. a4 {[%clk 0:00:34]}  Qxe2+ {[%clk 0:00:31]} 42. Qxe2 {[%clk 0:00:34]}  Nd4+ {[%clk 0:00:32]} 43. Kd2 {[%clk 0:00:35]}  Nxe2 {[%clk 0:00:33]} 44. Kxe2 {[%clk 0:00:36]}  Ke6 {[%clk 0:00:33]} 45. Kd3 {[%clk 0:00:36]}  Kd5 {[%clk 0:00:34]} 46. Ke3 {[%clk 0:00:32]}  g5 {[%clk 0:00:33]} 0-1


[Site "https://www.chess.com"]

[Event "Titled Tuesday Blitz August 08 Early 2023"]
[White "slidingknight2775"]
[Black "Zeynalli, Rashad"]
[BlackFideId "13403320"]
[WhiteElo "2467"]
[BlackElo "2649"]
[Result "0-1"]
[Round "6"]
[TimeControl "180+1"]
[Date "2023.08.08"]
[WhiteClock "0:00:07"]
[BlackClock "0:00:10"]
[Board "118"]

1. d4 {[%clk 0:03:00]}  d5 {[%clk 0:02:59]} 2. Nf3 {[%clk 0:02:59]}  Nf6 {[%clk 0:02:59]} 3. c4 {[%clk 0:02:59]}  e6 {[%clk 0:02:59]} 4. g3 {[%clk 0:02:59]}  Bb4+ {[%clk 0:02:58]} 5. Nc3 {[%clk 0:02:58]}  dxc4 {[%clk 0:02:58]} 6. Bg2 {[%clk 0:02:59]}  Nc6 {[%clk 0:02:47]} 7. O-O {[%clk 0:02:57]}  O-O {[%clk 0:02:47]} 8. Qa4 {[%clk 0:02:56]}  Bd7 {[%clk 0:02:41]} 9. Bg5 {[%clk 0:02:40]}  h6 {[%clk 0:02:30]} 10. Bxf6 {[%clk 0:02:39]}  Qxf6 {[%clk 0:02:31]} 11. a3 {[%clk 0:02:32]}  Ba5 {[%clk 0:02:03]} 12. Qxc4 {[%clk 0:02:31]}  Rfd8 {[%clk 0:02:01]} 13. Ne4 {[%clk 0:02:04]}  Qe7 {[%clk 0:02:00]} 14. Nc5 {[%clk 0:02:03]}  Rab8 {[%clk 0:01:58]} 15. Rfd1 {[%clk 0:01:49]}  Bb6 {[%clk 0:01:56]} 16. Rac1 {[%clk 0:01:46]}  Be8 {[%clk 0:01:52]} 17. b4 {[%clk 0:01:38]}  a6 {[%clk 0:01:46]} 18. e3 {[%clk 0:01:35]}  Qd6 {[%clk 0:01:33]} 19. Ne4 {[%clk 0:01:15]}  Qd5 {[%clk 0:01:28]} 20. Qxd5 {[%clk 0:01:11]}  Rxd5 {[%clk 0:01:28]} 21. Ne1 {[%clk 0:00:37]}  Rdd8 {[%clk 0:01:26]} 22. Nd3 {[%clk 0:00:34]}  a5 {[%clk 0:01:18]} 23. Nec5 {[%clk 0:00:25]}  axb4 {[%clk 0:01:15]} 24. axb4 {[%clk 0:00:26]}  Kf8 {[%clk 0:01:10]} 25. f4 {[%clk 0:00:23]}  Rd6 {[%clk 0:01:07]} 26. Ne4 {[%clk 0:00:22]}  Rdd8 {[%clk 0:01:05]} 27. Nec5 {[%clk 0:00:22]}  Ke7 {[%clk 0:00:48]} 28. Kf2 {[%clk 0:00:22]}  f6 {[%clk 0:00:45]} 29. Nxb7 {[%clk 0:00:19]}  Rxb7 {[%clk 0:00:44]} 30. Bxc6 {[%clk 0:00:18]}  Ra7 {[%clk 0:00:43]} 31. Bxe8 {[%clk 0:00:18]}  Rxe8 {[%clk 0:00:44]} 32. Ra1 {[%clk 0:00:18]}  Rea8 {[%clk 0:00:43]} 33. Rxa7 {[%clk 0:00:18]}  Rxa7 {[%clk 0:00:44]} 34. Rd2 {[%clk 0:00:18]}  Ra1 {[%clk 0:00:44]} 35. Rc2 {[%clk 0:00:14]}  Rh1 {[%clk 0:00:40]} 36. Kg2 {[%clk 0:00:10]}  Rd1 {[%clk 0:00:41]} 37. Nc5 {[%clk 0:00:06]}  Rb1 {[%clk 0:00:37]} 38. Nd3 {[%clk 0:00:06]}  Rb3 {[%clk 0:00:37]} 39. Rd2 {[%clk 0:00:04]}  Kd6 {[%clk 0:00:37]} 40. Kf3 {[%clk 0:00:04]}  Kd5 {[%clk 0:00:36]} 41. h4 {[%clk 0:00:04]}  h5 {[%clk 0:00:36]} 42. Nc5 {[%clk 0:00:03]}  Rxb4 {[%clk 0:00:34]} 43. Ke2 {[%clk 0:00:02]}  Rc4 {[%clk 0:00:28]} 44. Nd3 {[%clk 0:00:02]}  Ke4 {[%clk 0:00:25]} 45. Nf2+ {[%clk 0:00:03]}  Kf5 {[%clk 0:00:25]} 46. Nd3 {[%clk 0:00:03]}  Ra4 {[%clk 0:00:20]} 47. Nf2 {[%clk 0:00:03]}  Ba5 {[%clk 0:00:20]} 48. Rc2 {[%clk 0:00:03]}  Bb6 {[%clk 0:00:17]} 49. Kf3 {[%clk 0:00:03]}  Ra3 {[%clk 0:00:17]} 50. Rd2 {[%clk 0:00:04]}  e5 {[%clk 0:00:16]} 51. dxe5 {[%clk 0:00:01]}  Rxe3+ {[%clk 0:00:16]} 52. Kg2 {[%clk 0:00:01]}  fxe5 {[%clk 0:00:16]} 53. fxe5 {[%clk 0:00:02]}  Rxe5 {[%clk 0:00:15]} 54. Nd3 {[%clk 0:00:03]}  Rd5 {[%clk 0:00:15]} 55. Kf3 {[%clk 0:00:03]}  Ba5 {[%clk 0:00:14]} 56. Rd1 {[%clk 0:00:03]}  c5 {[%clk 0:00:14]} 57. Ke2 {[%clk 0:00:02]}  c4 {[%clk 0:00:12]} 58. Rf1+ {[%clk 0:00:03]}  Kg4 {[%clk 0:00:13]} 59. Rf4+ {[%clk 0:00:02]}  Kxg3 {[%clk 0:00:12]} 60. Rxc4 {[%clk 0:00:03]}  Bd8 {[%clk 0:00:11]} 61. Nf2 {[%clk 0:00:03]}  Re5+ {[%clk 0:00:08]} 62. Kf1 {[%clk 0:00:03]}  Rf5 {[%clk 0:00:08]} 63. Ke2 {[%clk 0:00:04]}  Rxf2+ {[%clk 0:00:08]} 64. Ke3 {[%clk 0:00:03]}  Rf3+ {[%clk 0:00:09]} 65. Ke2 {[%clk 0:00:03]}  Rf4 {[%clk 0:00:09]} 66. Rc3+ {[%clk 0:00:02]}  Kxh4 {[%clk 0:00:09]} 67. Rc8 {[%clk 0:00:03]}  Bf6 {[%clk 0:00:08]} 68. Rg8 {[%clk 0:00:03]}  Kg5 {[%clk 0:00:08]} 69. Ke3 {[%clk 0:00:04]}  Rg4 {[%clk 0:00:08]} 70. Rh8 {[%clk 0:00:05]}  h4 {[%clk 0:00:08]} 71. Rh7 {[%clk 0:00:06]}  Rg3+ {[%clk 0:00:08]} 72. Kf2 {[%clk 0:00:06]}  Ra3 {[%clk 0:00:09]} 73. Kg2 {[%clk 0:00:06]}  Ra8 {[%clk 0:00:09]} 74. Kh3 {[%clk 0:00:07]}  g6 {[%clk 0:00:09]} 75. Kg2 {[%clk 0:00:07]}  Rh8 {[%clk 0:00:09]} 76. Rb7 {[%clk 0:00:07]}  h3+ {[%clk 0:00:10]} 77. Kh1 {[%clk 0:00:08]}  Rd8 {[%clk 0:00:10]} 78. Rb5+ {[%clk 0:00:08]}  Kg4 {[%clk 0:00:10]} 79. Rb4+ {[%clk 0:00:08]}  Rd4 {[%clk 0:00:11]} 80. Rb1 {[%clk 0:00:07]}  Ra4 {[%clk 0:00:11]} 81. Rg1+ {[%clk 0:00:08]}  Kh4 {[%clk 0:00:11]} 82. Rf1 {[%clk 0:00:08]}  Ra1 {[%clk 0:00:11]} 83. Kh2 {[%clk 0:00:07]}  Be5+ {[%clk 0:00:10]} 84. Rf4+ {[%clk 0:00:07]}  Bxf4# {[%clk 0:00:10]} 0-1


[Site "https://www.chess.com"]

[Event "Titled Tuesday Blitz August 08 Early 2023"]
[White "Baches Garcia, Guillermo"]
[Black "Komov, Roman"]
[WhiteFideId "2209764"]
[BlackFideId "24175714"]
[WhiteElo "2461"]
[BlackElo "2608"]
[Result "0-1"]
[Round "6"]
[TimeControl "180+1"]
[Date "2023.08.08"]
[WhiteClock "0:00:00"]
[BlackClock "0:00:54"]
[Board "120"]

1. Nf3 {[%clk 0:03:00]}  d5 {[%clk 0:03:00]} 2. d4 {[%clk 0:03:00]}  Nf6 {[%clk 0:02:58]} 3. Bf4 {[%clk 0:02:59]}  e6 {[%clk 0:02:56]} 4. e3 {[%clk 0:02:59]}  h6 {[%clk 0:02:53]} 5. c3 {[%clk 0:02:57]}  Nh5 {[%clk 0:02:47]} 6. Be5 {[%clk 0:02:56]}  Bd6 {[%clk 0:02:46]} 7. Nbd2 {[%clk 0:02:53]}  Nd7 {[%clk 0:02:44]} 8. Bxd6 {[%clk 0:02:48]}  cxd6 {[%clk 0:02:45]} 9. Bd3 {[%clk 0:02:48]}  O-O {[%clk 0:02:38]} 10. Qe2 {[%clk 0:02:43]}  Nhf6 {[%clk 0:02:35]} 11. O-O-O {[%clk 0:02:38]}  a6 {[%clk 0:02:34]} 12. g4 {[%clk 0:02:33]}  e5 {[%clk 0:02:28]} 13. g5 {[%clk 0:02:22]}  e4 {[%clk 0:02:15]} 14. gxf6 {[%clk 0:02:15]}  Nxf6 {[%clk 0:02:16]} 15. Bc2 {[%clk 0:02:02]}  Bg4 {[%clk 0:02:14]} 16. Rhg1 {[%clk 0:01:57]}  Bh5 {[%clk 0:02:14]} 17. Rg3 {[%clk 0:01:29]}  exf3 {[%clk 0:02:14]} 18. Nxf3 {[%clk 0:01:04]}  Ne4 {[%clk 0:02:14]} 19. Rh3 {[%clk 0:00:45]}  Bg4 {[%clk 0:02:13]} 20. Rxh6 {[%clk 0:00:39]}  Bxf3 {[%clk 0:01:54]} 21. Qxf3 {[%clk 0:00:35]}  gxh6 {[%clk 0:01:54]} 22. Rg1+ {[%clk 0:00:34]}  Kh8 {[%clk 0:01:54]} 23. Bxe4 {[%clk 0:00:14]}  Rg8 {[%clk 0:01:32]} 24. Rxg8+ {[%clk 0:00:06]}  Qxg8 {[%clk 0:01:32]} 25. Bxd5 {[%clk 0:00:07]}  Qg1+ {[%clk 0:01:31]} 26. Kc2 {[%clk 0:00:06]}  Qg6+ {[%clk 0:01:28]} 27. Be4 {[%clk 0:00:05]}  Qg7 {[%clk 0:01:25]} 28. Bxb7 {[%clk 0:00:04]}  Rb8 {[%clk 0:01:24]} 29. Be4 {[%clk 0:00:04]}  a5 {[%clk 0:01:23]} 30. Qf5 {[%clk 0:00:04]}  a4 {[%clk 0:01:22]} 31. a3 {[%clk 0:00:02]}  Re8 {[%clk 0:01:22]} 32. h4 {[%clk 0:00:01]}  Rf8 {[%clk 0:01:20]} 33. Kd3 {[%clk 0:00:01]}  Rb8 {[%clk 0:01:20]} 34. h5 {[%clk 0:00:01]}  Kg8 {[%clk 0:01:19]} 35. f3 {[%clk 0:00:02]}  Rxb2 {[%clk 0:01:13]} 36. Qc8+ {[%clk 0:00:01]}  Qf8 {[%clk 0:01:13]} 37. Qf5 {[%clk 0:00:02]}  Qg7 {[%clk 0:01:07]} 38. Qc8+ {[%clk 0:00:02]}  Qf8 {[%clk 0:01:08]} 39. Qf5 {[%clk 0:00:02]}  Kg7 {[%clk 0:01:07]} 40. Qg4+ {[%clk 0:00:02]}  Kh8 {[%clk 0:01:06]} 41. Qf5 {[%clk 0:00:03]}  Kg7 {[%clk 0:01:01]} 42. Qg4+ {[%clk 0:00:03]}  Kf6 {[%clk 0:01:01]} 43. Qf5+ {[%clk 0:00:03]}  Ke7 {[%clk 0:01:01]} 44. Qa5 {[%clk 0:00:03]}  Qe8 {[%clk 0:00:58]} 45. Qa7+ {[%clk 0:00:03]}  Kf8 {[%clk 0:00:58]} 46. Qa6 {[%clk 0:00:02]}  Qb5+ {[%clk 0:00:52]} 47. Qxb5 {[%clk 0:00:01]}  Rxb5 {[%clk 0:00:53]} 48. Bc6 {[%clk 0:00:00]}  Rxh5 {[%clk 0:00:54]} 0-1


[Site "https://www.chess.com"]

[Event "Titled Tuesday Blitz August 08 Early 2023"]
[White "FREDERICKtheMATE"]
[Black "Prokofiev, Valentyn"]
[BlackFideId "14160161"]
[WhiteElo "2450"]
[BlackElo "2592"]
[Result "1/2-1/2"]
[Round "6"]
[TimeControl "180+1"]
[Date "2023.08.08"]
[WhiteClock "0:00:03"]
[BlackClock "0:00:07"]
[Board "121"]

1. Nf3 {[%clk 0:02:59]}  g6 {[%clk 0:03:00]} 2. g3 {[%clk 0:02:59]}  Bg7 {[%clk 0:03:00]} 3. Bg2 {[%clk 0:03:00]}  c5 {[%clk 0:03:01]} 4. O-O {[%clk 0:03:01]}  Nc6 {[%clk 0:03:01]} 5. c3 {[%clk 0:03:01]}  d5 {[%clk 0:02:59]} 6. d4 {[%clk 0:03:02]}  Nf6 {[%clk 0:03:00]} 7. dxc5 {[%clk 0:02:59]}  O-O {[%clk 0:03:00]} 8. Nbd2 {[%clk 0:02:59]}  Bg4 {[%clk 0:02:55]} 9. h3 {[%clk 0:02:58]}  Bxf3 {[%clk 0:02:55]} 10. Bxf3 {[%clk 0:02:57]}  e6 {[%clk 0:02:55]} 11. e4 {[%clk 0:02:55]}  Ne5 {[%clk 0:02:42]} 12. exd5 {[%clk 0:02:51]}  Nxd5 {[%clk 0:02:35]} 13. Ne4 {[%clk 0:02:44]}  Qe7 {[%clk 0:02:29]} 14. Bg2 {[%clk 0:02:37]}  Rfd8 {[%clk 0:02:27]} 15. Qa4 {[%clk 0:02:32]}  Nd7 {[%clk 0:02:07]} 16. c4 {[%clk 0:02:18]}  Nc7 {[%clk 0:02:02]} 17. Be3 {[%clk 0:02:11]}  Na6 {[%clk 0:01:58]} 18. c6 {[%clk 0:01:54]}  Nb6 {[%clk 0:01:52]} 19. Bxb6 {[%clk 0:01:50]}  axb6 {[%clk 0:01:51]} 20. cxb7 {[%clk 0:01:50]}  Ra7 {[%clk 0:01:42]} 21. Nc3 {[%clk 0:01:47]}  Bxc3 {[%clk 0:01:38]} 22. bxc3 {[%clk 0:01:48]}  Qc7 {[%clk 0:01:22]} 23. Rfd1 {[%clk 0:01:41]}  Rf8 {[%clk 0:01:22]} 24. Rab1 {[%clk 0:01:30]}  h5 {[%clk 0:00:56]} 25. Rd2 {[%clk 0:01:08]}  h4 {[%clk 0:00:55]} 26. g4 {[%clk 0:01:07]}  Rb8 {[%clk 0:00:23]} 27. Rdb2 {[%clk 0:01:01]}  Rbxb7 {[%clk 0:00:09]} 28. Bxb7 {[%clk 0:01:00]}  Qxb7 {[%clk 0:00:10]} 29. Qe8+ {[%clk 0:00:38]}  Kg7 {[%clk 0:00:10]} 30. Qd8 {[%clk 0:00:35]}  Qf3 {[%clk 0:00:07]} 31. Qxh4 {[%clk 0:00:35]}  Nc5 {[%clk 0:00:07]} 32. Qg3 {[%clk 0:00:32]}  Qf6 {[%clk 0:00:07]} 33. Rxb6 {[%clk 0:00:24]}  Rxa2 {[%clk 0:00:06]} 34. Qe3 {[%clk 0:00:20]}  Ne4 {[%clk 0:00:03]} 35. Qd4 {[%clk 0:00:19]}  Nxc3 {[%clk 0:00:04]} 36. Qxf6+ {[%clk 0:00:18]}  Kxf6 {[%clk 0:00:04]} 37. R1b3 {[%clk 0:00:17]}  Rc2 {[%clk 0:00:04]} 38. Kg2 {[%clk 0:00:17]}  g5 {[%clk 0:00:03]} 39. c5 {[%clk 0:00:16]}  Nd5 {[%clk 0:00:03]} 40. Rf3+ {[%clk 0:00:15]}  Kg6 {[%clk 0:00:03]} 41. Rb7 {[%clk 0:00:15]}  Nf4+ {[%clk 0:00:03]} 42. Kh2 {[%clk 0:00:14]}  Rxc5 {[%clk 0:00:03]} 43. h4 {[%clk 0:00:14]}  f6 {[%clk 0:00:04]} 44. h5+ {[%clk 0:00:12]}  Kh6 {[%clk 0:00:04]} 45. Ra3 {[%clk 0:00:10]}  f5 {[%clk 0:00:02]} 46. Raa7 {[%clk 0:00:09]}  Nxh5 {[%clk 0:00:03]} 47. Rh7+ {[%clk 0:00:07]}  Kg6 {[%clk 0:00:03]} 48. gxh5+ {[%clk 0:00:07]}  Kf6 {[%clk 0:00:04]} 49. Rh6+ {[%clk 0:00:06]}  Ke5 {[%clk 0:00:05]} 50. Re7 {[%clk 0:00:07]}  Kf4 {[%clk 0:00:05]} 51. Rexe6 {[%clk 0:00:05]}  g4 {[%clk 0:00:06]} 52. Kg2 {[%clk 0:00:04]}  Rc2 {[%clk 0:00:06]} 53. Rhg6 {[%clk 0:00:04]}  Rd2 {[%clk 0:00:06]} 54. h6 {[%clk 0:00:05]}  g3 {[%clk 0:00:06]} 55. Rxg3 {[%clk 0:00:04]}  Rxf2+ {[%clk 0:00:07]} 56. Kxf2 {[%clk 0:00:03]} 1/2-1/2


[Site "https://www.chess.com"]